bitfinex/quotes_ETHUSD_20220113
["timestamp","ask_amount","ask_price","bid_price","bid_amount"]
[1642042148395,6.0003,3333.6,3333.5,5.18153058]
[1642042149201,6.0003,3333.6,3333.5,3.81344518]
[1642042149601,6.0003,3333.6,3333.5,1.0]
[1642042150001,6.0003,3333.6,3333.4,1.92972591]
[1642042150405,0.00568424,3333.5,3333.4,0.74968]
[1642042150600,6.00598424,3333.5,3333.4,0.74968]
[1642042151404,6.00598424,3333.5,3333.4,2.01548595]
[1642042152856,6.00598424,3333.5,3333.4,0.74968]
[1642042155457,6.00598424,3333.5,3333.4,1.74968]
[1642042155896,6.00598424,3333.5,3333.4,6.14968]
[1642042156097,6.00598424,3333.5,3333.4,1.74968]
[1642042156901,6.00598424,3333.5,3333.4,4.69968]
[1642042158003,6.00598424,3333.5,3333.4,1.69968]
[1642042160050,6.00598424,3333.5,3333.4,4.34453154]
[1642042160255,6.00598424,3333.5,3333.4,1.69968]
[1642042162157,6.00598424,3333.5,3333.4,0.69968]
[1642042167954,6.00598424,3333.5,3333.4,18.22968]
[1642042168557,6.00598424,3333.5,3333.4,19.22968]
[1642042169356,6.00598424,3333.5,3333.4,18.22968]
[1642042169556,6.00598424,3333.5,3333.4,0.69968]
[1642042169756,6.00598424,3333.5,3333.4,18.22968]
[1642042170558,6.00598424,3333.5,3333.4,19.22968]
[1642042171401,6.00598424,3333.5,3333.4,19.34958]
[1642042172607,6.00598424,3333.5,3333.4,19.22968]
[1642042173509,0.00914424,3333.5,3333.4,19.22968]
[1642042173808,0.00914424,3333.5,3333.4,19.34958]
[1642042174007,1.1644,3334.4,3333.5,6.85]
[1642042174210,1.1644,3334.4,3333.9,0.74961]
[1642042174410,0.00454739,3334.3,3334.1,0.74962]
[1642042174848,0.00397896,3334.2,3334.1,0.74962]
[1642042175851,0.00397896,3334.2,3334.1,2.24882]
[1642042182553,0.00397896,3334.2,3334.1,1.4992]
[1642042183154,6.00247896,3334.2,3334.1,1.4992]
[1642042194907,6.00247896,3334.2,3333.8,0.1199]
[1642042195307,0.00341054,3334.1,3334.0,3.79650804]
[1642042195508,6.00191054,3334.1,3334.0,1.19650804]
[1642042197556,6.00191054,3334.1,3334.0,3.79650804]
[1642042198758,6.00191054,3334.1,3334.0,4.91640804]
[1642042198963,6.00191054,3334.1,3334.0,22.44640804]
[1642042201399,6.00191054,3334.1,3334.0,4.91640804]
[1642042201602,6.00191054,3334.1,3334.0,7.52780891]
[1642042203705,6.00191054,3334.1,3334.0,25.05780891]
[1642042204208,5.95191054,3334.1,3334.0,25.05780891]
[1642042204674,8.3273,3335.1,3334.1,7.1]
[1642042204862,8.3273,3335.1,3334.5,0.74945]
[1642042205063,0.00511581,3335.0,3334.8,0.74945]
[1642042205263,6.00251581,3335.0,3334.8,0.74945]
[1642042205464,0.00454739,3334.9,3334.8,0.74945]
[1642042205665,6.00194739,3334.9,3334.8,1.94652189]
[1642042207069,6.00194739,3334.9,3334.8,0.74945]
[1642042207666,6.00194739,3334.9,3334.7,1.4989]
[1642042208066,0.00397896,3334.8,3334.7,1.4989]
[1642042208268,6.00137896,3334.8,3334.7,1.4989]
[1642042213058,6.00137896,3334.8,3334.6,0.74944]
[1642042213457,0.00341054,3334.7,3334.3,1.49911]
[1642042213658,5.9974,3334.6,3334.3,1.61901]
[1642042213857,6.00024212,3334.6,3334.3,1.49911]
[1642042214059,6.00024212,3334.6,3334.4,0.1199]
[1642042214060,0.00227369,3334.5,3334.4,0.1199]
[1642042214260,5.99967369,3334.5,3334.4,0.1199]
[1642042214665,5.99967369,3334.5,3334.4,0.86945]
[1642042215258,5.99967369,3334.5,3334.4,6.68795406]
[1642042215657,5.99967369,3334.5,3334.4,0.86945]
[1642042216300,5.99967369,3334.5,3334.4,5.31945]
[1642042217708,5.99967369,3334.5,3334.4,5.19955]
[1642042220064,5.99967369,3334.5,3334.4,0.74955]
[1642042223073,5.99967369,3334.5,3334.3,1.49911]
[1642042223509,0.00170527,3334.4,3334.3,1.49911]
[1642042223711,0.00170527,3334.4,3334.0,0.1199]
[1642042223911,0.00170527,3334.4,3333.9,2.69843]
[1642042223912,0.05154773,3334.3,3333.9,1.49923]
[1642042224111,0.05154773,3334.3,3333.4,0.1199]
[1642042224112,0.12103685,3334.3,3333.4,0.1199]
[1642042224311,5.9974,3334.2,3333.3,3.01892762]
[1642042224513,5.9974,3334.2,3333.5,0.00341054]
[1642042224917,5.9974,3334.2,3333.7,0.74976]
[1642042225313,5.9974,3334.2,3333.8,0.00170527]
[1642042225914,5.9974,3334.2,3333.9,0.74971]
[1642042227264,5.9974,3334.2,3334.0,2.65876092]
[1642042227469,5.9974,3334.2,3334.0,2.65861401]
[1642042227663,5.9974,3334.2,3334.1,7.649]
[1642042227864,5.9974,3334.2,3334.1,25.2989]
[1642042229572,5.9974,3334.2,3334.1,9.27709919]
[1642042229969,5.9974,3334.2,3334.1,10.91340786]
[1642042230567,5.9974,3334.2,3334.1,11.91340786]
[1642042230906,5.9974,3334.2,3334.1,10.91340786]
[1642042231104,5.9974,3334.2,3334.1,11.91340786]
[1642042231506,5.9974,3334.2,3334.1,6.76340786]
[1642042231706,5.9974,3334.2,3334.1,4.12709919]
[1642042232006,5.9974,3334.2,3334.1,6.7805987]
[1642042233511,0.1199,3335.0,3334.3,17.53]
[1642042233713,8.7171,3335.6,3334.6,0.3747084]
[1642042233714,0.1199,3335.2,3334.6,0.3747084]
[1642042233915,7.499,3335.6,3334.8,17.53]
[1642042234111,5.9969,3335.2,3334.9,0.426]
[1642042234312,6.00201581,3335.2,3334.9,1.5459]
[1642042234951,6.00201581,3335.2,3334.9,2.2952]
[1642042235749,6.00201581,3335.2,3335.0,0.3746609]
[1642042235951,6.00201581,3335.2,3335.1,0.426]
[1642042236150,6.00201581,3335.2,3335.1,3.22128625]
[1642042236549,6.00201581,3335.2,3335.1,0.426]
[1642042237859,6.00201581,3335.2,3335.1,3.11748837]
[1642042239100,6.00201581,3335.2,3335.1,0.426]
[1642042240801,6.00201581,3335.2,3335.1,17.956]
[1642042241203,0.00511581,3335.6,3335.3,0.74924]
[1642042241411,1.1462,3336.6,3335.5,7.15]
[1642042241604,1.1462,3336.6,3335.6,1.426]
[1642042241803,1.1462,3336.6,3335.7,0.1198]
[1642042242002,1.1462,3336.6,3335.8,0.426]
[1642042242257,1.1462,3336.6,3335.9,0.1198]
[1642042242460,2.57136111,3336.5,3336.1,0.74905]
[1642042242658,6.1145,3336.4,3335.8,2.24715]
[1642042243060,0.00625266,3336.3,3335.8,2.24715]
[1642042243260,5.9947,3336.2,3335.9,0.74919]
[1642042243462,6.00038423,3336.2,3335.9,0.74919]
[1642042243659,0.00511581,3336.1,3335.9,0.74919]
[1642042243959,5.99924739,3336.0,3335.9,0.74919]
[1642042244560,8.5706085,3336.0,3335.9,0.74919]
[1642042244959,8.5706085,3336.0,3335.9,1.49846]
[1642042245566,5.99924739,3336.0,3335.9,1.49846]
[1642042246220,5.99924739,3336.0,3335.9,0.74927]
[1642042247428,8.57088532,3336.0,3335.9,0.74927]
[1642042248230,8.52088532,3336.0,3335.9,0.74927]
[1642042248532,5.94924739,3336.0,3335.9,0.74927]
[1642042249529,5.94924739,3336.0,3335.5,2.61847]
[1642042249530,5.94924739,3336.0,3335.7,0.74931]
[1642042249953,0.00397896,3335.9,3335.7,0.74931]
[1642042250157,5.9447,3335.8,3335.7,0.74931]
[1642042250353,5.94811054,3335.8,3335.7,0.74931]
[1642042250762,5.94811054,3335.8,3335.7,1.49855]
[1642042254923,5.94811054,3335.8,3335.7,4.84855]
[1642042255122,5.94811054,3335.8,3335.7,2.49855]
[1642042256323,5.94811054,3335.8,3335.7,20.02855]
[1642042256523,5.94811054,3335.8,3335.7,19.02855]
[1642042256725,5.94811054,3335.8,3335.7,20.02855]
[1642042257767,5.94811054,3335.8,3335.7,2.49855]
[1642042258066,5.94811054,3335.8,3335.7,1.49855]
[1642042264658,1.1462,3336.6,3335.7,26.90455]
[1642042264863,1.1462,3336.6,3336.1,1.8726213]
[1642042265062,5.99857896,3336.5,3336.1,1.1235713]
[1642042265262,5.99857896,3336.5,3336.1,2.1235713]
[1642042265463,0.00341054,3336.4,3336.1,2.1235713]
[1642042265662,0.00341054,3336.4,3336.3,1.52043773]
[1642042265864,5.9946,3336.4,3336.3,1.52043773]
[1642042266863,5.9946,3336.4,3336.3,2.26947773]
[1642042267064,5.9946,3336.4,3336.3,0.74904]
[1642042267665,5.9946,3336.4,3336.3,1.74904]
[1642042268516,5.9946,3336.4,3336.3,0.74904]
[1642042268717,5.9946,3336.4,3336.3,1.74904]
[1642042269521,5.9946,3336.4,3336.3,0.74904]
[1642042270125,5.9946,3336.4,3336.3,1.17504]
[1642042270321,5.9946,3336.4,3336.3,4.09243056]
[1642042270522,5.9946,3336.4,3336.3,5.09243056]
[1642042271127,5.9946,3336.4,3336.3,2.5495583]
[1642042271726,5.9946,3336.4,3336.3,5.7995583]
[1642042272756,5.9946,3336.4,3336.3,2.5495583]
[1642042272960,6.9245,3336.4,3336.2,1.49807]
[1642042273158,6.9245,3336.4,3335.8,1.61819]
[1642042273357,0.05438985,3336.3,3335.8,1.49839]
[1642042273559,5.9946,3336.2,3335.8,1.49839]
[1642042273757,5.99687369,3336.2,3335.8,1.49839]
[1642042273957,0.00170527,3336.1,3335.8,1.49839]
[1642042274361,0.00113685,3336.0,3335.8,1.49839]
[1642042274758,0.00170527,3336.1,3335.8,1.49839]
[1642042275059,0.00113685,3336.0,3335.8,1.49839]
[1642042275258,0.00113685,3336.0,3335.5,2.99694]
[1642042275259,0.00113685,3336.0,3335.5,1.49855]
[1642042275558,5.9946,3335.9,3335.6,0.00113685]
[1642042275760,5.9946,3335.9,3335.7,0.7493]
[1642042278717,2.57152703,3335.8,3335.7,0.7493]
[1642042278919,8.56612703,3335.8,3335.7,0.7493]
[1642042279318,8.56612703,3335.8,3335.6,0.00113685]
[1642042279523,3.19735408,3335.7,3335.6,0.00113685]
[1642042279752,9.04504574,3335.7,3335.6,0.00113685]
[1642042280052,9.04504574,3335.7,3335.3,0.00284212]
[1642042280252,9.21201975,3335.7,3335.3,0.00284212]
[1642042280455,8.68602703,3335.7,3335.3,0.00284212]
[1642042280859,11.63116114,3335.7,3335.1,0.00397897]
[1642042281058,11.75106114,3335.7,3335.3,0.00284212]
[1642042281258,11.63116114,3335.7,3335.1,0.00397897]
[1642042281758,2.57152703,3335.6,3335.1,0.00397897]
[1642042281958,9.02664105,3335.5,3335.1,0.00397897]
[1642042282160,5.9946,3335.5,3335.1,0.00397897]
[1642042283413,5.9946,3335.5,3335.2,0.74942]
[1642042283609,2.57152703,3335.4,3335.2,0.74942]
[1642042283814,2.57152703,3335.4,3335.3,0.00284212]
[1642042284009,8.56792703,3335.4,3335.3,0.00284212]
[1642042284210,5.9964,3335.4,3335.3,0.00284212]
[1642042292913,5.9964,3335.4,3335.3,2.88221369]
[1642042293112,5.9964,3335.4,3335.3,21.95811369]
[1642042293310,0.00312,3335.4,3335.3,21.95811369]
[1642042293713,0.12103685,3336.0,3335.4,7.15]
[1642042293910,0.12103685,3336.0,3335.6,0.74914]
[1642042294113,0.12103685,3336.0,3335.8,0.74916]
[1642042294511,0.12103685,3336.0,3335.8,1.74916]
[1642042295166,0.12103685,3336.0,3335.8,0.74916]
[1642042296865,5.9954,3335.9,3335.8,0.74916]
[1642042299010,5.9954,3335.9,3335.8,3.53596149]
[1642042299410,5.9954,3335.9,3335.7,1.92431]
[1642042299609,5.9954,3335.9,3335.7,1.49831]
[1642042301913,5.9954,3335.9,3335.5,0.00170527]
[1642042303965,2.5715542,3335.8,3335.5,0.00170527]
[1642042304167,5.9954,3335.7,3335.5,0.00170527]
[1642042306705,5.9954,3335.7,3335.6,0.74926]
[1642042311162,5.9954,3335.7,3335.5,0.00170527]
[1642042311862,8.56705966,3335.7,3335.5,0.00170527]
[1642042312663,5.9954,3335.7,3335.5,0.00170527]
[1642042315522,2.57171279,3335.6,3335.5,0.00170527]
[1642042315725,8.56711279,3335.6,3335.5,0.00170527]
[1642042316623,5.9954,3335.6,3335.5,0.00170527]
[1642042318066,5.9954,3335.6,3335.1,1.61856]
[1642042318067,8.86707378,3335.6,3335.2,0.00341054]
[1642042318969,2.57167378,3335.5,3335.2,0.00341054]
[1642042319167,5.9954,3335.4,3335.2,0.00341054]
[1642042319967,5.9954,3335.4,3335.3,0.74932]
[1642042320169,5.9954,3335.4,3335.3,0.86922]
[1642042320367,5.9954,3335.4,3335.3,0.87206212]
[1642042322111,5.9954,3335.4,3335.3,0.12274212]
[1642042322914,8.56717176,3335.4,3335.3,0.00284212]
[1642042323112,8.56717176,3335.4,3335.3,0.75215212]
[1642042323314,8.56717176,3335.4,3335.3,0.74931]
[1642042323513,5.9954,3335.4,3335.3,0.75215212]
[1642042326364,5.9954,3335.4,3335.3,3.65673818]
[1642042328170,5.9954,3335.4,3335.3,0.75215212]
[1642042328427,5.9954,3335.4,3335.3,3.64838853]
[1642042328612,5.9954,3335.4,3335.3,3.76828853]
[1642042328812,5.9954,3335.4,3335.3,0.87205212]
[1642042329917,5.9954,3335.4,3335.3,0.75215212]
[1642042339015,5.9954,3335.4,3335.3,4.00215212]
[1642042340661,5.9954,3335.4,3335.3,0.75215212]
[1642042341966,5.9954,3335.4,3335.3,4.70215212]
[1642042343426,5.9954,3335.4,3335.3,0.75215212]
[1642042343620,5.9954,3335.4,3335.3,0.00284212]
[1642042344020,5.9954,3335.4,3335.0,0.00454739]
[1642042344221,5.9954,3335.4,3334.9,0.00511581]
[1642042344421,5.9954,3335.4,3334.8,0.00568424]
[1642042344629,8.56716989,3335.4,3335.1,18.27946]
[1642042344823,0.1199,3336.0,3335.2,11.99311884]
[1642042345023,0.1199,3336.0,3335.5,1.49824]
[1642042345222,0.1199,3336.0,3335.6,0.1199]
[1642042345424,0.1199,3336.0,3335.7,0.426]
[1642042345624,0.1199,3336.0,3335.8,0.1199]
[1642042345828,0.1199,3336.0,3335.9,5.476]
[1642042346027,0.1199,3336.0,3335.9,6.476]
[1642042346227,0.1199,3336.0,3335.9,6.5959]
[1642042347025,0.1199,3336.0,3335.9,9.84166691]
[1642042347666,4.2587,3336.6,3336.0,5.85]
[1642042347865,4.2587,3336.6,3336.1,4.00932146]
[1642042347866,3.1176,3336.6,3336.1,4.00932146]
[1642042348064,0.1199,3337.1,3336.1,5.00932146]
[1642042348065,0.00397896,3336.5,3336.1,5.00932146]
[1642042348466,0.00341054,3336.4,3336.3,4.20774464]
[1642042348668,0.00341054,3336.4,3336.3,7.23478949]
[1642042348868,0.00341054,3336.4,3336.3,5.18382949]
[1642042350067,0.00341054,3336.4,3336.3,6.18382949]
[1642042350268,0.00341054,3336.4,3336.3,6.72962949]
[1642042350666,2.57090023,3337.0,3336.6,1.1234212]
[1642042350920,5.9938,3336.9,3336.7,0.74894]
[1642042351113,5.99664212,3336.9,3336.7,0.74894]
[1642042351914,5.99664212,3336.9,3336.7,1.4979]
[1642042353619,5.99664212,3336.9,3336.7,4.30037221]
[1642042353822,5.99664212,3336.9,3336.7,1.4979]
[1642042354019,5.99664212,3336.9,3336.7,4.40609821]
[1642042354220,5.99664212,3336.9,3336.8,8.15602793]
[1642042354423,5.99664212,3336.9,3336.8,8.27582793]
[1642042355664,5.94664212,3336.9,3336.8,8.27582793]
[1642042355870,5.94664212,3336.9,3336.8,8.70182793]
[1642042356068,5.94664212,3336.9,3336.8,4.60182793]
[1642042357471,4.2063,3337.6,3337.1,0.74883]
[1642042357676,0.1198,3338.0,3337.3,1.1232401]
[1642042357873,0.00341054,3337.5,3337.3,0.3744101]
[1642042358072,5.9922,3337.4,3337.3,0.3744101]
[1642042358271,5.99504211,3337.4,3337.3,0.3744101]
[1642042359525,5.99504211,3337.4,3337.3,1.8720601]
[1642042362869,5.99504211,3337.4,3337.3,4.78873531]
[1642042363269,5.94504211,3337.4,3337.3,4.78873531]
[1642042363467,5.94504211,3337.4,3337.3,5.90853531]
[1642042363667,5.94504211,3337.4,3337.3,4.90853531]
[1642042364467,5.94504211,3337.4,3337.3,1.9918601]
[1642042364668,5.94504211,3337.4,3337.3,1.49765]
[1642042366909,5.94504211,3337.4,3337.3,4.36097771]
[1642042368614,5.94504211,3337.4,3337.3,1.49765]
[1642042369961,5.94504211,3337.4,3337.2,0.74881]
[1642042370163,5.94504211,3337.4,3336.9,1.61774]
[1642042370363,0.00227369,3337.3,3336.9,1.49794]
[1642042370567,5.9422,3337.2,3336.9,1.49794]
[1642042370862,0.00113684,3337.1,3336.9,1.49794]
[1642042371861,5.9422,3337.0,3336.9,1.49794]
[1642042372666,7.09453734,3337.0,3336.8,0.74905]
[1642042372868,7.09453734,3337.0,3336.5,0.1198]
[1642042373266,7.09453734,3337.0,3336.6,0.00170527]
[1642042373915,0.00723711,3336.9,3336.6,0.00170527]
[1642042374112,5.9422,3336.8,3336.6,0.00170527]
[1642042374518,6.936,3336.8,3336.2,1.49819]
[1642042374715,0.1198,3336.7,3336.5,0.0022737]
[1642042374914,13.89152,3336.6,3335.1,3.11493288]
[1642042375115,13.89152,3336.6,3335.6,0.00738951]
[1642042375116,0.1199,3336.5,3335.6,0.00738951]
[1642042375313,5.9422,3336.4,3335.6,0.00738951]
[1642042375515,6.2422,3336.4,3335.6,0.00738951]
[1642042375717,0.1199,3336.3,3335.6,0.00738951]
[1642042375921,7.4410153,3336.2,3335.4,0.00625265]
[1642042376113,0.4199,3336.1,3335.6,0.00511581]
[1642042376314,5.9422,3336.0,3335.0,0.00852635]
[1642042376515,0.1199,3335.9,3334.7,0.01023162]
[1642042376714,6.2422,3336.0,3334.8,0.1295632]
[1642042376923,6.2422,3336.0,3335.2,0.74941]
[1642042377375,6.2422,3336.0,3335.3,0.00682108]
[1642042377576,6.5422,3336.0,3335.3,0.00682108]
[1642042377878,7.84256404,3336.0,3335.3,0.00682108]
[1642042378777,7.54256404,3336.0,3335.4,0.74938]
[1642042379179,7.54256404,3336.0,3335.5,0.00568423]
[1642042379780,0.01942398,3335.8,3335.5,0.00568423]
[1642042379979,5.9422,3335.7,3335.5,0.00568423]
[1642042381612,5.9422,3335.7,3335.6,0.1199]
[1642042382014,5.9422,3335.7,3335.6,0.12501581]
[1642042383420,5.9422,3335.7,3335.6,4.02501581]
[1642042383617,5.9422,3335.7,3335.6,5.02501581]
[1642042384865,5.9422,3335.7,3335.6,4.02501581]
[1642042385667,5.9422,3335.7,3335.6,0.12501581]
[1642042386072,5.9422,3335.7,3335.6,0.00511581]
[1642042386968,5.9422,3335.7,3335.5,0.00568423]
[1642042390519,5.9422,3335.7,3335.3,0.00682108]
[1642042391922,5.9422,3335.7,3335.4,0.74935]
[1642042392370,5.9422,3335.7,3335.5,0.00568423]
[1642042393974,5.9422,3335.7,3335.3,0.00682108]
[1642042397429,0.04091804,3335.5,3335.3,0.00682108]
[1642042397621,3.41363288,3335.6,3335.3,0.00682108]
[1642042397622,5.9422,3335.4,3335.3,0.00682108]
[1642042397821,5.9422,3335.4,3335.1,0.00795793]
[1642042397822,6.2422,3335.4,3335.1,0.00795793]
[1642042398422,8.08381068,3335.4,3335.1,0.00795793]
[1642042398621,8.20371068,3335.4,3335.1,0.00795793]
[1642042399669,11.37623476,3335.4,3335.1,0.00795793]
[1642042399874,6.2422,3335.4,3335.1,0.00795793]
[1642042400176,5.9422,3335.4,3334.7,0.01023162]
[1642042400478,5.9422,3335.4,3334.7,0.1199]
[1642042400674,5.9422,3335.4,3334.6,0.13070004]
[1642042400874,5.9422,3335.4,3334.6,0.0795632]
[1642042401174,0.00284212,3335.3,3335.0,1.49872]
[1642042401377,5.9422,3335.2,3335.0,1.49872]
[1642042401574,5.9444737,3335.2,3335.0,1.49872]
[1642042401777,0.00170527,3335.1,3335.0,1.49872]
[1642042401976,5.94390527,3335.1,3335.0,1.49872]
[1642042402380,5.94390527,3335.1,3334.8,1.49887]
[1642042402777,0.00113685,3335.0,3334.8,1.49887]
[1642042402978,5.9422,3334.9,3334.8,1.49887]
[1642042403177,5.9422,3334.9,3334.8,2.2483]
[1642042407170,13.9422,3334.9,3334.8,2.2483]
[1642042409177,13.9422,3334.9,3334.8,1.49887]
[1642042411425,0.00703769,3334.8,3334.5,1.49899]
[1642042411626,5.9422,3334.7,3334.5,1.49899]
[1642042411929,6.2422,3334.7,3334.6,0.00113684]
[1642042412828,5.9422,3334.7,3334.6,0.00113684]
[1642042413429,5.8922,3334.7,3334.6,0.00113684]
[1642042424773,5.8922,3334.7,3334.6,0.75062684]
[1642042428325,8.0,3334.9,3334.7,9.4479]
[1642042428525,8.0,3334.9,3334.8,4.976]
[1642042428726,13.9973,3334.9,3334.8,5.976]
[1642042428926,13.9973,3334.9,3334.8,4.976]
[1642042429978,13.9973,3334.9,3334.8,5.0959]
[1642042430184,13.9973,3334.9,3334.8,8.25299647]
[1642042435438,13.9973,3334.9,3334.8,9.25299647]
[1642042436438,13.9973,3334.9,3334.8,8.25299647]
[1642042437041,13.9973,3334.9,3334.8,8.13309647]
[1642042438492,13.9973,3334.9,3334.8,4.976]
[1642042440397,13.9973,3334.9,3334.8,7.963333]
[1642042442430,16.9973,3334.9,3334.8,4.976]
[1642042444231,16.9973,3334.9,3334.8,7.8710343]
[1642042445485,11.00312,3334.9,3334.8,10.5710343]
[1642042445686,11.00312,3334.9,3334.8,11.5710343]
[1642042445883,11.00312,3334.9,3334.8,11.6909343]
[1642042446082,5.00942,3334.9,3334.8,11.6909343]
[1642042446283,4.83412186,3334.9,3334.8,11.6909343]
[1642042446585,0.1199,3336.1,3335.3,0.74919]
[1642042446783,1.49642519,3336.5,3335.4,3.7373832]
[1642042446784,5.9957,3336.0,3335.4,3.7373832]
[1642042446984,0.00511582,3335.7,3335.4,3.8572832]
[1642042447184,5.9957,3335.6,3335.4,3.8572832]
[1642042447389,6.00024739,3335.6,3335.5,4.12331795]
[1642042447590,0.00282,3335.6,3335.5,11.26641558]
[1642042447789,0.00282,3335.6,3335.5,4.89140763]
[1642042447989,0.00282,3335.6,3335.5,8.90701685]
[1642042449624,0.00282,3335.6,3335.5,5.77150763]
[1642042449825,0.00282,3335.6,3335.5,4.42257]
[1642042450428,0.00282,3335.6,3335.5,3.42257]
[1642042451634,0.00282,3335.6,3335.5,7.77257]
[1642042452040,0.00282,3335.6,3335.5,2.99657]
[1642042452279,0.00282,3335.6,3335.3,0.74937]
[1642042452479,0.00282,3335.6,3335.0,1.49873]
[1642042452683,0.00397897,3335.5,3335.0,1.49873]
[1642042452879,0.00282,3335.4,3335.0,1.49873]
[1642042453080,0.00623055,3335.4,3335.0,1.49873]
[1642042453279,0.00284212,3335.3,3335.0,1.49873]
[1642042453483,0.00282,3335.2,3335.0,1.49873]
[1642042453683,0.0050937,3335.2,3335.0,1.49873]
[1642042453879,0.00170527,3335.1,3335.0,1.49873]
[1642042454078,0.00452527,3335.1,3335.0,1.49873]
[1642042467384,0.00452527,3335.1,3335.0,8.29873]
[1642042467985,0.00452527,3335.1,3335.0,8.41863]
[1642042473139,4.2945,3336.1,3335.1,7.55]
[1642042473339,4.2945,3336.1,3335.6,0.74917]
[1642042473340,5.9959,3336.0,3335.6,0.74917]
[1642042473539,6.00101582,3336.0,3335.6,0.74917]
[1642042473738,8.5725204,3336.0,3335.6,0.74917]
[1642042474442,8.5725204,3336.0,3335.6,2.24751]
[1642042475375,2.57150458,3335.9,3335.7,1.31405585]
[1642042475578,5.9959,3335.8,3335.7,1.31405585]
[1642042475777,5.99987897,3335.8,3335.7,1.31405585]
[1642042476377,5.99987897,3335.8,3335.6,2.36741]
[1642042476577,5.99987897,3335.8,3335.6,2.24751]
[1642042476779,0.00341055,3335.7,3335.6,2.24751]
[1642042476980,5.99931055,3335.7,3335.6,2.24751]
[1642042480637,5.99931055,3335.7,3335.5,2.99675]
[1642042480836,5.99931055,3335.7,3335.5,1.49842]
[1642042481040,0.00284212,3335.6,3335.3,0.7494]
[1642042481339,5.9981737,3335.5,3335.2,1.49866]
[1642042481538,6.2981737,3335.5,3335.2,1.49866]
[1642042481738,0.00170528,3335.4,3335.2,1.49866]
[1642042481937,5.9959,3335.3,3335.2,1.49866]
[1642042482185,5.99703685,3335.3,3335.2,1.49866]
[1642042485789,5.99703685,3335.3,3335.2,2.24802]
[1642042490488,5.99703685,3335.3,3335.2,2.36792]
[1642042490888,5.99703685,3335.3,3335.2,0.74936]
[1642042493632,5.99703685,3335.3,3335.1,1.49874]
[1642042494633,2.5719717,3335.2,3335.1,1.49874]
[1642042494837,8.5678717,3335.2,3335.1,1.49874]
[1642042495437,5.9959,3335.2,3335.1,1.49874]
[1642042496438,8.56782404,3335.2,3335.1,1.49874]
[1642042497180,5.9959,3335.2,3335.1,1.61864]
[1642042499187,5.9959,3335.2,3335.1,5.11864]
[1642042499787,5.9959,3335.2,3335.1,6.11864]
[1642042499987,5.9959,3335.2,3335.1,5.11864]
[1642042500187,5.9959,3335.2,3335.1,1.61864]
[1642042502036,5.9959,3335.2,3335.1,0.86926]
[1642042503044,5.9959,3335.2,3335.1,4.41926]
[1642042503843,5.9959,3335.2,3335.1,0.86926]
[1642042505986,5.9959,3335.2,3335.1,3.56926]
[1642042506286,5.9959,3335.2,3335.1,0.86926]
[1642042506486,5.9959,3335.2,3335.1,0.74936]
[1642042507092,5.9959,3335.2,3335.1,4.19936]
[1642042507494,5.9959,3335.2,3335.1,4.62536]
[1642042508732,5.9959,3335.2,3335.1,1.17536]
[1642042509734,5.9959,3335.2,3335.1,2.47536]
[1642042509934,5.9959,3335.2,3335.1,7.32536]
[1642042510134,0.00254,3335.2,3335.1,24.85536]
[1642042510537,0.00254,3335.2,3335.1,24.97526]
[1642042510740,4.9287,3336.2,3335.2,7.15]
[1642042510939,5.9957,3336.1,3335.7,0.74915]
[1642042511138,6.00024739,3336.1,3335.7,0.74915]
[1642042511538,6.00024739,3336.1,3335.9,1.21023757]
[1642042511739,6.00024739,3336.1,3336.0,1.86866995]
[1642042512585,6.00024739,3336.1,3336.0,2.61777995]
[1642042513392,0.00852739,3336.1,3336.0,12.29087354]
[1642042513590,0.00852739,3336.1,3336.0,29.94077354]
[1642042513786,0.00852739,3336.1,3336.0,28.91767995]
[1642042513986,0.01086704,3336.9,3336.1,7.3]
[1642042514187,0.01086704,3336.9,3336.5,0.74894]
[1642042514388,0.00397896,3336.8,3336.5,1.17494]
[1642042514587,0.00397896,3336.8,3336.5,2.17494]
[1642042514786,0.00341054,3336.7,3336.5,1.17494]
[1642042514987,0.00341054,3336.7,3336.5,2.17494]
[1642042515186,0.00284212,3336.6,3336.5,1.17494]
[1642042516337,0.00284212,3336.6,3336.5,0.74894]
[1642042516935,0.00284212,3336.6,3336.5,3.49894]
[1642042517740,0.00284212,3336.6,3336.5,4.79894]
[1642042518140,0.00284212,3336.6,3336.5,3.49894]
[1642042518745,0.00284212,3336.6,3336.5,21.14874]
[1642042518941,0.01086704,3336.9,3336.6,7.2]
[1642042519141,0.01086704,3336.9,3336.7,2.1956826]
[1642042519340,5.99493684,3336.8,3336.7,2.1748]
[1642042519684,0.00485684,3336.8,3336.7,24.9548]
[1642042520084,7.0187,3337.6,3337.5,2.74004238]
[1642042520289,3.9389,3337.6,3337.5,2.10481945]
[1642042520485,1.61622519,3338.0,3337.5,2.10481945]
[1642042520888,0.00625266,3337.9,3337.5,2.10481945]
[1642042521290,0.00568424,3337.8,3337.5,3.50635676]
[1642042521789,0.00511581,3337.7,3337.5,3.50635676]
[1642042522189,0.00454739,3337.6,3337.5,3.50635676]
[1642042523291,0.00454739,3337.6,3337.5,2.15031731]
[1642042523537,0.00454739,3337.6,3337.4,1.49755]
[1642042523936,0.00397897,3337.5,3337.2,1.91702]
[1642042524336,0.00341054,3337.4,3337.2,1.91702]
[1642042524634,0.00284212,3337.3,3337.2,1.91702]
[1642042525136,5.99982109,3337.3,3337.2,1.91702]
[1642042525336,5.99982109,3337.3,3337.2,0.86872]
[1642042526339,5.99982109,3337.3,3337.2,0.74892]
[1642042527394,5.99982109,3337.3,3337.1,0.426]
[1642042527796,0.0022737,3337.2,3337.0,1.49779]
[1642042527996,5.993,3337.1,3337.0,1.49779]
[1642042528197,5.99470527,3337.1,3337.0,1.49779]
[1642042530295,8.56532952,3337.1,3337.0,1.49779]
[1642042531743,5.99470527,3337.1,3337.0,1.49779]
[1642042536493,9.54366378,3337.1,3336.8,0.1198]
[1642042536892,0.00113685,3337.0,3336.8,0.1198]
[1642042537092,5.993,3336.9,3336.8,0.1198]
[1642042537297,5.993,3336.9,3336.5,1.49806]
[1642042537497,3.33936163,3336.8,3336.5,1.49806]
[1642042537697,5.993,3336.7,3336.6,0.00113685]
[1642042539742,5.993,3336.7,3336.6,0.75015685]